[Event "December 19 Early 2023"]
[Site "https://www.chess.com"]
[Date "2023.12.19"]
[Round "5"]
[White "Shohat, Yotam"]
[Black "Kononenko, Dmitry"]
[Result "0-1"]
[Board "82"]
[TimeControl "180+1"]
[WhiteFideId "2813955"]
[BlackFideId "14113538"]
[WhiteElo "2226"]
[BlackElo "2168"]
[WhiteTeam "ISR"]
[BlackTeam "UKR"]
[WhiteClock "0:00:02"]
[BlackClock "0:00:47"]

1. e4 {[%clk 0:03:00]}  d5 {[%clk 0:02:58]} 2. exd5 {[%clk 0:03:00]}  Qxd5 {[%clk 0:02:57]} 3. Nc3 {[%clk 0:03:00]}  Qa5 {[%clk 0:02:53]} 4. d4 {[%clk 0:03:01]}  Nf6 {[%clk 0:02:53]} 5. Nf3 {[%clk 0:03:01]}  Bg4 {[%clk 0:02:51]} 6. h3 {[%clk 0:03:00]}  Bh5 {[%clk 0:02:51]} 7. g4 {[%clk 0:03:00]}  Bg6 {[%clk 0:02:52]} 8. Ne5 {[%clk 0:03:01]}  e6 {[%clk 0:02:52]} 9. Nc4 {[%clk 0:03:01]}  Qa6 {[%clk 0:02:52]} 10. Bf4 {[%clk 0:01:57]}  Qc6 {[%clk 0:02:48]} 11. Rg1 {[%clk 0:01:33]}  Bb4 {[%clk 0:02:25]} 12. a3 {[%clk 0:00:57]}  Bxc3+ {[%clk 0:02:22]} 13. bxc3 {[%clk 0:00:58]}  Nbd7 {[%clk 0:02:20]} 14. Rb1 {[%clk 0:00:49]}  O-O {[%clk 0:01:52]} 15. Qe2 {[%clk 0:00:35]}  b5 {[%clk 0:01:40]} 16. Nd2 {[%clk 0:00:34]}  Qxc3 {[%clk 0:01:38]} 17. Bg2 {[%clk 0:00:22]}  Nd5 {[%clk 0:01:38]} 18. Bg3 {[%clk 0:00:09]}  Qxc2 {[%clk 0:01:34]} 19. Be4 {[%clk 0:00:09]}  Bxe4 {[%clk 0:01:28]} 20. Qxe4 {[%clk 0:00:10]}  Qxe4+ {[%clk 0:01:25]} 21. Nxe4 {[%clk 0:00:10]}  c6 {[%clk 0:01:25]} 22. Rc1 {[%clk 0:00:09]}  N7b6 {[%clk 0:01:17]} 23. Rxc6 {[%clk 0:00:09]}  Nc4 {[%clk 0:01:17]} 24. Ke2 {[%clk 0:00:08]}  Nxa3 {[%clk 0:01:16]} 25. Ra1 {[%clk 0:00:06]}  Nc4 {[%clk 0:01:16]} 26. Rca6 {[%clk 0:00:06]}  b4 {[%clk 0:01:11]} 27. Nc5 {[%clk 0:00:05]}  Nc3+ {[%clk 0:01:03]} 28. Kd3 {[%clk 0:00:05]}  Nb6 {[%clk 0:01:01]} 29. Rxa7 {[%clk 0:00:06]}  Rxa7 {[%clk 0:01:00]} 30. Rxa7 {[%clk 0:00:07]}  Nbd5 {[%clk 0:01:01]} 31. Kc4 {[%clk 0:00:04]}  h6 {[%clk 0:01:00]} 32. Kb3 {[%clk 0:00:04]}  Rc8 {[%clk 0:00:59]} 33. Rb7 {[%clk 0:00:03]}  Ne2 {[%clk 0:00:57]} 34. Be5 {[%clk 0:00:02]}  f6 {[%clk 0:00:57]} 35. Bd6 {[%clk 0:00:01]}  Nxd4+ {[%clk 0:00:56]} 36. Kc4 {[%clk 0:00:02]}  Nc6 {[%clk 0:00:55]} 37. Nxe6 {[%clk 0:00:02]}  Na5+ {[%clk 0:00:54]} 38. Kxd5 {[%clk 0:00:02]}  Nxb7 {[%clk 0:00:54]} 39. Bxb4 {[%clk 0:00:03]}  Rc2 {[%clk 0:00:50]} 40. f4 {[%clk 0:00:03]}  Rh2 {[%clk 0:00:50]} 41. Kc6 {[%clk 0:00:03]}  Rxh3 {[%clk 0:00:47]} 42. Kxb7 {[%clk 0:00:03]}  Rb3 {[%clk 0:00:48]} 43. Kc6 {[%clk 0:00:03]}  Rxb4 {[%clk 0:00:48]} 44. Kd5 {[%clk 0:00:04]}  Ra4 {[%clk 0:00:48]} 45. Nc5 {[%clk 0:00:02]}  Rxf4 {[%clk 0:00:47]} 0-1

[Event "December 19 Early 2023"]
[Site "https://www.chess.com"]
[Date "2023.12.19"]
[Round "5"]
[White "Ezat, Mohamed"]
[Black "Taboas Rodriguez, Daniel"]
[Result "0-1"]
[Board "83"]
[TimeControl "180+1"]
[WhiteFideId "10600906"]
[BlackFideId "2208466"]
[WhiteElo "2367"]
[BlackElo "2365"]
[WhiteTeam "EGY"]
[BlackTeam "ESP"]
[WhiteClock "0:00:08"]
[BlackClock "0:00:12"]

1. d4 {[%clk 0:03:00]}  Nf6 {[%clk 0:02:59]} 2. c4 {[%clk 0:02:59]}  g6 {[%clk 0:02:59]} 3. Nc3 {[%clk 0:02:57]}  Bg7 {[%clk 0:02:59]} 4. e4 {[%clk 0:02:57]}  d6 {[%clk 0:03:00]} 5. Be2 {[%clk 0:02:57]}  O-O {[%clk 0:03:01]} 6. Bg5 {[%clk 0:02:56]}  Nc6 {[%clk 0:02:56]} 7. d5 {[%clk 0:02:55]}  Ne5 {[%clk 0:02:57]} 8. Nf3 {[%clk 0:02:53]}  Nxf3+ {[%clk 0:02:52]} 9. Bxf3 {[%clk 0:02:53]}  e6 {[%clk 0:02:52]} 10. O-O {[%clk 0:02:49]}  exd5 {[%clk 0:02:52]} 11. cxd5 {[%clk 0:02:47]}  Re8 {[%clk 0:02:51]} 12. Rc1 {[%clk 0:02:46]}  Bd7 {[%clk 0:02:49]} 13. a4 {[%clk 0:02:45]}  c5 {[%clk 0:02:36]} 14. dxc6 {[%clk 0:02:43]}  Bxc6 {[%clk 0:02:36]} 15. Re1 {[%clk 0:02:43]}  Qa5 {[%clk 0:02:29]} 16. Bf4 {[%clk 0:02:38]}  Rad8 {[%clk 0:02:26]} 17. h3 {[%clk 0:02:16]}  Qb4 {[%clk 0:02:26]} 18. Qc2 {[%clk 0:02:15]}  d5 {[%clk 0:02:01]} 19. exd5 {[%clk 0:02:14]}  Rxe1+ {[%clk 0:01:51]} 20. Rxe1 {[%clk 0:02:13]}  Nxd5 {[%clk 0:01:51]} 21. Bxd5 {[%clk 0:02:08]}  Bxd5 {[%clk 0:01:37]} 22. Bg5 {[%clk 0:01:58]}  Rc8 {[%clk 0:01:27]} 23. Qe2 {[%clk 0:01:50]}  Be6 {[%clk 0:01:16]} 24. Ne4 {[%clk 0:01:33]}  Qxb2 {[%clk 0:01:11]} 25. Qf3 {[%clk 0:01:11]}  Bd5 {[%clk 0:00:46]} 26. Qf4 {[%clk 0:01:04]}  Bxe4 {[%clk 0:00:44]} 27. Qxe4 {[%clk 0:01:04]}  h6 {[%clk 0:00:41]} 28. Be3 {[%clk 0:01:04]}  b6 {[%clk 0:00:41]} 29. Qb7 {[%clk 0:01:03]}  Qc3 {[%clk 0:00:38]} 30. Rc1 {[%clk 0:00:57]}  Qxc1+ {[%clk 0:00:33]} 31. Bxc1 {[%clk 0:00:58]}  Rxc1+ {[%clk 0:00:33]} 32. Kh2 {[%clk 0:00:59]}  Rc2 {[%clk 0:00:27]} 33. Kg1 {[%clk 0:00:33]}  Bd4 {[%clk 0:00:24]} 34. Qa8+ {[%clk 0:00:28]}  Kg7 {[%clk 0:00:24]} 35. Qxa7 {[%clk 0:00:21]}  Bxf2+ {[%clk 0:00:17]} 36. Kf1 {[%clk 0:00:20]}  Bc5 {[%clk 0:00:16]} 37. g4 {[%clk 0:00:18]}  Ra2 {[%clk 0:00:16]} 38. Ke1 {[%clk 0:00:15]}  Kf6 {[%clk 0:00:16]} 39. Kd1 {[%clk 0:00:15]}  Ke6 {[%clk 0:00:15]} 40. Qa6 {[%clk 0:00:13]}  Ra3 {[%clk 0:00:12]} 41. Kc1 {[%clk 0:00:11]}  f5 {[%clk 0:00:12]} 42. Qc8+ {[%clk 0:00:10]}  Kf6 {[%clk 0:00:12]} 43. Qc6+ {[%clk 0:00:10]}  Ke5 {[%clk 0:00:12]} 44. Qe8+ {[%clk 0:00:09]}  Kf4 {[%clk 0:00:12]} 45. Qxg6 {[%clk 0:00:08]}  Ke5 {[%clk 0:00:13]} 46. Qxf5+ {[%clk 0:00:08]}  Kd4 {[%clk 0:00:13]} 47. Qf4+ {[%clk 0:00:09]}  Kc3 {[%clk 0:00:13]} 48. Qxh6 {[%clk 0:00:08]}  Ra1# {[%clk 0:00:12]} 0-1

[Event "December 19 Early 2023"]
[Site "https://www.chess.com"]
[Date "2023.12.19"]
[Round "5"]
[White "Vigoa Apecheche, Yanira"]
[Black "Shimanov, Aleksandr"]
[Result "0-1"]
[Board "84"]
[TimeControl "180+1"]
[WhiteFideId "3507041"]
[BlackFideId "4198603"]
[WhiteElo "2276"]
[BlackElo "2611"]
[WhiteTeam "USA"]
[BlackTeam "RUS"]
[WhiteClock "0:00:00"]
[BlackClock "0:01:14"]

1. d4 {[%clk 0:03:00]}  d5 {[%clk 0:02:57]} 2. Nf3 {[%clk 0:03:00]}  Bf5 {[%clk 0:02:54]} 3. Bf4 {[%clk 0:02:54]}  e6 {[%clk 0:02:53]} 4. e3 {[%clk 0:02:52]}  Nc6 {[%clk 0:02:43]} 5. c3 {[%clk 0:02:46]}  Bd6 {[%clk 0:02:42]} 6. Bg3 {[%clk 0:02:42]}  h5 {[%clk 0:02:38]} 7. Bd3 {[%clk 0:02:38]}  Nge7 {[%clk 0:02:36]} 8. Qc2 {[%clk 0:02:26]}  Qd7 {[%clk 0:02:22]} 9. Nbd2 {[%clk 0:02:24]}  O-O-O {[%clk 0:02:21]} 10. O-O-O {[%clk 0:02:18]}  f6 {[%clk 0:02:19]} 11. e4 {[%clk 0:02:16]}  dxe4 {[%clk 0:02:15]} 12. Nxe4 {[%clk 0:02:12]}  Bxe4 {[%clk 0:02:08]} 13. Bxe4 {[%clk 0:02:11]}  g5 {[%clk 0:02:07]} 14. Bxd6 {[%clk 0:02:05]}  Qxd6 {[%clk 0:02:06]} 15. Nd2 {[%clk 0:01:54]}  Nd5 {[%clk 0:01:58]} 16. Kb1 {[%clk 0:01:38]}  h4 {[%clk 0:01:57]} 17. h3 {[%clk 0:01:34]}  Kb8 {[%clk 0:01:51]} 18. Rhe1 {[%clk 0:01:14]}  Rhg8 {[%clk 0:01:43]} 19. a3 {[%clk 0:01:07]}  f5 {[%clk 0:01:37]} 20. Nc4 {[%clk 0:00:48]}  Qf4 {[%clk 0:01:32]} 21. Bxd5 {[%clk 0:00:45]}  exd5 {[%clk 0:01:33]} 22. Ne5 {[%clk 0:00:45]}  Nxe5 {[%clk 0:01:33]} 23. Rxe5 {[%clk 0:00:44]}  Rgf8 {[%clk 0:01:34]} 24. Rde1 {[%clk 0:00:40]}  g4 {[%clk 0:01:31]} 25. Qd3 {[%clk 0:00:37]}  a6 {[%clk 0:01:28]} 26. R1e2 {[%clk 0:00:24]}  Qh2 {[%clk 0:01:21]} 27. Rxf5 {[%clk 0:00:19]}  Qxg2 {[%clk 0:01:21]} 28. Rxf8 {[%clk 0:00:17]}  Rxf8 {[%clk 0:01:22]} 29. hxg4 {[%clk 0:00:16]}  h3 {[%clk 0:01:22]} 30. f4 {[%clk 0:00:14]}  h2 {[%clk 0:01:13]} 31. Rxg2 {[%clk 0:00:05]}  h1=Q+ {[%clk 0:01:13]} 32. Ka2 {[%clk 0:00:00]}  Qxg2 {[%clk 0:01:14]} 0-1

[Event "December 19 Early 2023"]
[Site "https://www.chess.com"]
[Date "2023.12.19"]
[Round "5"]
[White "Harutjunyan, Gevorg"]
[Black "Senft, Sean"]
[Result "1-0"]
[Board "87"]
[TimeControl "180+1"]
[WhiteFideId "13300873"]
[BlackFideId "2044960"]
[WhiteElo "2436"]
[BlackElo "2005"]
[WhiteTeam "ARM"]
[BlackTeam "USA"]
[WhiteClock "0:00:24"]
[BlackClock "0:00:00"]

1. e4 {[%clk 0:03:00]}  c5 {[%clk 0:03:00]} 2. Nf3 {[%clk 0:02:59]}  d6 {[%clk 0:03:00]} 3. d4 {[%clk 0:02:57]}  cxd4 {[%clk 0:03:01]} 4. Nxd4 {[%clk 0:02:58]}  Nf6 {[%clk 0:03:02]} 5. Nc3 {[%clk 0:02:58]}  a6 {[%clk 0:03:03]} 6. Qf3 {[%clk 0:02:55]}  e6 {[%clk 0:02:49]} 7. g4 {[%clk 0:02:49]}  Nc6 {[%clk 0:02:49]} 8. Nxc6 {[%clk 0:02:49]}  bxc6 {[%clk 0:02:50]} 9. g5 {[%clk 0:02:48]}  Nd7 {[%clk 0:02:50]} 10. h4 {[%clk 0:02:48]}  Bb7 {[%clk 0:02:50]} 11. h5 {[%clk 0:02:43]}  Qc7 {[%clk 0:02:23]} 12. b3 {[%clk 0:02:34]}  Ne5 {[%clk 0:01:48]} 13. Qg3 {[%clk 0:02:32]}  d5 {[%clk 0:01:35]} 14. f4 {[%clk 0:02:28]}  Nd7 {[%clk 0:01:28]} 15. Bb2 {[%clk 0:02:18]}  Bd6 {[%clk 0:01:25]} 16. e5 {[%clk 0:02:18]}  Bb4 {[%clk 0:01:22]} 17. O-O-O {[%clk 0:02:17]}  O-O-O {[%clk 0:01:13]} 18. Bg2 {[%clk 0:01:59]}  Kb8 {[%clk 0:01:12]} 19. Na4 {[%clk 0:01:42]}  c5 {[%clk 0:01:08]} 20. f5 {[%clk 0:01:40]}  Bc6 {[%clk 0:01:05]} 21. h6 {[%clk 0:01:36]}  gxh6 {[%clk 0:00:56]} 22. Rxh6 {[%clk 0:01:37]}  Bxa4 {[%clk 0:00:55]} 23. bxa4 {[%clk 0:01:34]}  c4 {[%clk 0:00:39]} 24. c3 {[%clk 0:01:13]}  Bf8 {[%clk 0:00:31]} 25. fxe6 {[%clk 0:01:10]}  Bxh6 {[%clk 0:00:29]} 26. exd7 {[%clk 0:01:11]}  Bg7 {[%clk 0:00:29]} 27. Rxd5 {[%clk 0:01:10]}  Rxd7 {[%clk 0:00:28]} 28. Qf3 {[%clk 0:01:00]}  Rxd5 {[%clk 0:00:20]} 29. Qxd5 {[%clk 0:01:01]}  Kc8 {[%clk 0:00:14]} 30. Ba3 {[%clk 0:00:45]}  Bxe5 {[%clk 0:00:13]} 31. Qa8+ {[%clk 0:00:37]}  Qb8 {[%clk 0:00:13]} 32. Qxa6+ {[%clk 0:00:35]}  Kd8 {[%clk 0:00:07]} 33. Qxc4 {[%clk 0:00:34]}  Bf4+ {[%clk 0:00:03]} 34. Kc2 {[%clk 0:00:35]}  Re8 {[%clk 0:00:04]} 35. Qd4+ {[%clk 0:00:29]}  Kc8 {[%clk 0:00:01]} 36. Bh3+ {[%clk 0:00:29]}  Kb7 {[%clk 0:00:01]} 37. Qd5+ {[%clk 0:00:28]}  Ka7 {[%clk 0:00:02]} 38. Bc5+ {[%clk 0:00:28]}  Ka6 {[%clk 0:00:02]} 39. Bf1+ {[%clk 0:00:28]}  Ka5 {[%clk 0:00:00]} 40. Ba7+ {[%clk 0:00:24]} 1-0

[Event "December 19 Early 2023"]
[Site "https://www.chess.com"]
[Date "2023.12.19"]
[Round "5"]
[White "Tabuenca Mendataurigoitia, Daniel"]
[Black "Ashraf, Artin"]
[Result "0-1"]
[Board "88"]
[TimeControl "180+1"]
[WhiteFideId "24563617"]
[BlackFideId "22514805"]
[WhiteElo "2130"]
[BlackElo "2268"]
[WhiteTeam "ESP"]
[BlackTeam "IRI"]
[WhiteClock "0:00:04"]
[BlackClock "0:00:58"]

1. Nf3 {[%clk 0:03:00]}  Nf6 {[%clk 0:02:56]} 2. g3 {[%clk 0:03:01]}  e6 {[%clk 0:02:55]} 3. Bg2 {[%clk 0:03:00]}  d5 {[%clk 0:02:55]} 4. O-O {[%clk 0:03:00]}  Be7 {[%clk 0:02:56]} 5. d3 {[%clk 0:03:00]}  O-O {[%clk 0:02:57]} 6. c4 {[%clk 0:03:00]}  d4 {[%clk 0:02:51]} 7. e3 {[%clk 0:02:45]}  Nc6 {[%clk 0:02:51]} 8. exd4 {[%clk 0:02:41]}  Nxd4 {[%clk 0:02:51]} 9. Nxd4 {[%clk 0:02:39]}  Qxd4 {[%clk 0:02:51]} 10. Nc3 {[%clk 0:02:39]}  Rd8 {[%clk 0:02:16]} 11. Nb5 {[%clk 0:02:30]}  Qd7 {[%clk 0:02:15]} 12. Bf4 {[%clk 0:02:19]}  Ne8 {[%clk 0:02:15]} 13. Qb3 {[%clk 0:02:08]}  c6 {[%clk 0:02:00]} 14. Nc3 {[%clk 0:02:08]}  b6 {[%clk 0:02:00]} 15. Rad1 {[%clk 0:02:02]}  Bb7 {[%clk 0:02:00]} 16. d4 {[%clk 0:02:02]}  Nf6 {[%clk 0:01:58]} 17. Qc2 {[%clk 0:01:45]}  Rac8 {[%clk 0:01:54]} 18. b3 {[%clk 0:01:43]}  b5 {[%clk 0:01:54]} 19. Ne4 {[%clk 0:01:38]}  Qe8 {[%clk 0:01:38]} 20. Be5 {[%clk 0:01:33]}  Ba6 {[%clk 0:01:37]} 21. Rfe1 {[%clk 0:01:26]}  bxc4 {[%clk 0:01:32]} 22. bxc4 {[%clk 0:01:27]}  c5 {[%clk 0:01:32]} 23. Bxf6 {[%clk 0:01:20]}  Bxf6 {[%clk 0:01:30]} 24. Nxf6+ {[%clk 0:01:16]}  gxf6 {[%clk 0:01:30]} 25. d5 {[%clk 0:01:17]}  e5 {[%clk 0:01:29]} 26. Bh3 {[%clk 0:01:12]}  Rb8 {[%clk 0:01:24]} 27. Bf5 {[%clk 0:01:09]}  h6 {[%clk 0:01:22]} 28. Re4 {[%clk 0:01:06]}  Bc8 {[%clk 0:01:21]} 29. Rg4+ {[%clk 0:01:04]}  Kh8 {[%clk 0:01:21]} 30. Bxc8 {[%clk 0:01:03]}  Rbxc8 {[%clk 0:01:21]} 31. Qf5 {[%clk 0:01:03]}  Rd6 {[%clk 0:01:21]} 32. Rh4 {[%clk 0:00:53]}  Kg7 {[%clk 0:01:21]} 33. Qg4+ {[%clk 0:00:46]}  Kh7 {[%clk 0:01:20]} 34. Qf5+ {[%clk 0:00:36]}  Kg7 {[%clk 0:01:20]} 35. Rb1 {[%clk 0:00:32]}  Qd7 {[%clk 0:01:18]} 36. Rg4+ {[%clk 0:00:27]}  Kh8 {[%clk 0:01:18]} 37. Qh5 {[%clk 0:00:24]}  f5 {[%clk 0:01:18]} 38. Rh4 {[%clk 0:00:20]}  Rg6 {[%clk 0:01:12]} 39. Qe2 {[%clk 0:00:15]}  Re8 {[%clk 0:01:10]} 40. Rh5 {[%clk 0:00:10]}  Kg7 {[%clk 0:01:08]} 41. Qb2 {[%clk 0:00:08]}  Rg5 {[%clk 0:01:07]} 42. Rh4 {[%clk 0:00:06]}  Qd6 {[%clk 0:01:06]} 43. f4 {[%clk 0:00:05]}  Rg4 {[%clk 0:01:05]} 44. Rxg4+ {[%clk 0:00:05]}  fxg4 {[%clk 0:01:05]} 45. Re1 {[%clk 0:00:05]}  f6 {[%clk 0:01:05]} 46. fxe5 {[%clk 0:00:05]}  Rxe5 {[%clk 0:01:04]} 47. Rxe5 {[%clk 0:00:05]}  fxe5 {[%clk 0:01:05]} 48. Qe2 {[%clk 0:00:05]}  Qg6 {[%clk 0:01:04]} 49. Qxe5+ {[%clk 0:00:03]}  Kf7 {[%clk 0:01:02]} 50. Qf4+ {[%clk 0:00:02]}  Ke8 {[%clk 0:01:03]} 51. Kg2 {[%clk 0:00:01]}  Qc2+ {[%clk 0:01:02]} 52. Kg1 {[%clk 0:00:01]}  Qb1+ {[%clk 0:01:01]} 53. Kf2 {[%clk 0:00:02]}  Qxa2+ {[%clk 0:01:00]} 54. Ke3 {[%clk 0:00:03]}  Qb3+ {[%clk 0:00:59]} 55. Kd2 {[%clk 0:00:02]}  Qb2+ {[%clk 0:00:59]} 56. Kd3 {[%clk 0:00:02]}  Qb1+ {[%clk 0:00:58]} 57. Kc3 {[%clk 0:00:03]}  Qe1+ {[%clk 0:00:56]} 58. Kc2 {[%clk 0:00:02]}  Qe2+ {[%clk 0:00:56]} 59. Kc3 {[%clk 0:00:03]}  Qf3+ {[%clk 0:00:56]} 60. Qxf3 {[%clk 0:00:03]}  gxf3 {[%clk 0:00:57]} 61. Kd3 {[%clk 0:00:03]}  a5 {[%clk 0:00:57]} 62. Ke3 {[%clk 0:00:04]}  a4 {[%clk 0:00:57]} 63. Kxf3 {[%clk 0:00:05]}  a3 {[%clk 0:00:58]} 64. Ke3 {[%clk 0:00:04]}  a2 {[%clk 0:00:58]} 0-1

[Event "December 19 Early 2023"]
[Site "https://www.chess.com"]
[Date "2023.12.19"]
[Round "5"]
[White "Kanyamarala, Tarun"]
[Black "Pichot, Alan"]
[Result "0-1"]
[Board "89"]
[TimeControl "180+1"]
[WhiteFideId "45004714"]
[BlackFideId "110973"]
[WhiteElo "2318"]
[BlackElo "2592"]
[WhiteTeam "IRL"]
[BlackTeam "ESP"]
[WhiteClock "0:01:05"]
[BlackClock "0:01:52"]

1. Nf3 {[%clk 0:02:59]}  d5 {[%clk 0:02:48]} 2. g3 {[%clk 0:02:58]}  c6 {[%clk 0:02:44]} 3. Bg2 {[%clk 0:02:56]}  Nf6 {[%clk 0:02:45]} 4. O-O {[%clk 0:02:55]}  Bg4 {[%clk 0:02:45]} 5. h3 {[%clk 0:02:55]}  Bh5 {[%clk 0:02:44]} 6. d3 {[%clk 0:02:54]}  Nbd7 {[%clk 0:02:44]} 7. c4 {[%clk 0:02:52]}  e6 {[%clk 0:02:44]} 8. cxd5 {[%clk 0:02:43]}  exd5 {[%clk 0:02:43]} 9. Qc2 {[%clk 0:02:42]}  Be7 {[%clk 0:02:36]} 10. e4 {[%clk 0:02:38]}  O-O {[%clk 0:02:34]} 11. e5 {[%clk 0:02:26]}  Ne8 {[%clk 0:02:27]} 12. d4 {[%clk 0:02:19]}  Nc7 {[%clk 0:02:22]} 13. Nc3 {[%clk 0:02:12]}  f6 {[%clk 0:02:21]} 14. e6 {[%clk 0:02:06]}  Nxe6 {[%clk 0:02:17]} 15. Qf5 {[%clk 0:02:05]}  Bf7 {[%clk 0:02:16]} 16. Re1 {[%clk 0:02:02]}  g6 {[%clk 0:02:14]} 17. Qc2 {[%clk 0:01:58]}  Re8 {[%clk 0:02:10]} 18. h4 {[%clk 0:01:54]}  Bd6 {[%clk 0:02:06]} 19. Be3 {[%clk 0:01:45]}  Ndf8 {[%clk 0:02:05]} 20. h5 {[%clk 0:01:45]}  Ng7 {[%clk 0:02:03]} 21. hxg6 {[%clk 0:01:44]}  hxg6 {[%clk 0:02:03]} 22. Rab1 {[%clk 0:01:37]}  g5 {[%clk 0:02:02]} 23. b4 {[%clk 0:01:34]}  Bg6 {[%clk 0:02:01]} 24. Qb3 {[%clk 0:01:24]}  Bxb1 {[%clk 0:02:02]} 25. Rxb1 {[%clk 0:01:24]}  Qd7 {[%clk 0:02:01]} 26. b5 {[%clk 0:01:24]}  Qf5 {[%clk 0:01:59]} 27. bxc6 {[%clk 0:01:19]}  bxc6 {[%clk 0:01:58]} 28. Qb7 {[%clk 0:01:06]}  Rab8 {[%clk 0:01:53]} 29. Qxc6 {[%clk 0:01:05]}  Rxb1+ {[%clk 0:01:52]} 0-1

[Event "December 19 Early 2023"]
[Site "https://www.chess.com"]
[Date "2023.12.19"]
[Round "5"]
[White "Valle Luis, Leo"]
[Black "Feuerstack, Aljoscha"]
[Result "0-1"]
[Board "94"]
[TimeControl "180+1"]
[WhiteFideId "54577187"]
[BlackFideId "4681932"]
[WhiteElo "2143"]
[BlackElo "2418"]
[WhiteTeam "ESP"]
[BlackTeam "GER"]
[WhiteClock "0:00:02"]
[BlackClock "0:00:31"]

1. e4 {[%clk 0:02:56]}  c6 {[%clk 0:02:57]} 2. d4 {[%clk 0:02:57]}  d5 {[%clk 0:02:56]} 3. e5 {[%clk 0:02:57]}  a6 {[%clk 0:02:56]} 4. h4 {[%clk 0:02:50]}  c5 {[%clk 0:02:54]} 5. c3 {[%clk 0:02:47]}  Nc6 {[%clk 0:02:52]} 6. Nf3 {[%clk 0:02:41]}  Bg4 {[%clk 0:02:49]} 7. Be2 {[%clk 0:02:38]}  e6 {[%clk 0:02:46]} 8. a3 {[%clk 0:02:04]}  Bxf3 {[%clk 0:02:25]} 9. Bxf3 {[%clk 0:02:01]}  cxd4 {[%clk 0:02:25]} 10. cxd4 {[%clk 0:01:58]}  Qb6 {[%clk 0:02:26]} 11. Be3 {[%clk 0:01:49]}  Qxb2 {[%clk 0:02:23]} 12. Nd2 {[%clk 0:01:50]}  Nxd4 {[%clk 0:01:45]} 13. Qa4+ {[%clk 0:01:49]}  Nb5 {[%clk 0:01:44]} 14. O-O {[%clk 0:01:46]}  Qxe5 {[%clk 0:01:35]} 15. Rab1 {[%clk 0:01:45]}  Bd6 {[%clk 0:01:17]} 16. g3 {[%clk 0:01:40]}  Rd8 {[%clk 0:01:17]} 17. Rxb5 {[%clk 0:01:23]}  axb5 {[%clk 0:01:15]} 18. Qxb5+ {[%clk 0:01:23]}  Rd7 {[%clk 0:01:13]} 19. Bf4 {[%clk 0:01:17]}  Qd4 {[%clk 0:01:12]} 20. Bxd6 {[%clk 0:01:08]}  Qxd2 {[%clk 0:01:12]} 21. Bb4 {[%clk 0:01:07]}  Qc2 {[%clk 0:01:06]} 22. Bxd5 {[%clk 0:00:36]}  Ne7 {[%clk 0:00:50]} 23. Bxb7 {[%clk 0:00:21]}  Qc7 {[%clk 0:00:49]} 24. Be4 {[%clk 0:00:09]}  O-O {[%clk 0:00:47]} 25. Qh5 {[%clk 0:00:08]}  g6 {[%clk 0:00:47]} 26. Qh6 {[%clk 0:00:08]}  Rfd8 {[%clk 0:00:45]} 27. Kh2 {[%clk 0:00:05]}  Qc4 {[%clk 0:00:39]} 28. Bg2 {[%clk 0:00:05]}  Nf5 {[%clk 0:00:38]} 29. Qg5 {[%clk 0:00:05]}  h6 {[%clk 0:00:37]} 30. Qf6 {[%clk 0:00:05]}  Qd4 {[%clk 0:00:38]} 31. Qxd4 {[%clk 0:00:03]}  Rxd4 {[%clk 0:00:37]} 32. Bc5 {[%clk 0:00:03]}  Rc4 {[%clk 0:00:37]} 33. Bb4 {[%clk 0:00:03]}  Rc2 {[%clk 0:00:36]} 34. Kg1 {[%clk 0:00:03]}  Nd4 {[%clk 0:00:34]} 35. a4 {[%clk 0:00:02]}  Rc4 {[%clk 0:00:32]} 36. Bd2 {[%clk 0:00:02]}  Ne2+ {[%clk 0:00:31]} 37. Kh1 {[%clk 0:00:02]}  Rxd2 {[%clk 0:00:32]} 38. a5 {[%clk 0:00:02]}  Ra4 {[%clk 0:00:32]} 39. Rb1 {[%clk 0:00:01]}  Rxa5 {[%clk 0:00:31]} 40. Rb8+ {[%clk 0:00:02]}  Kg7 {[%clk 0:00:31]} 41. Kh2 {[%clk 0:00:02]} 0-1